bitfinex/quotes_ETHUSD_20260107
["timestamp","ask_amount","ask_price","bid_price","bid_amount"]
[1767798517197,0.822,3170.3,3167.7,2.85642951]
[1767798517532,2.8054517,3170.1,3167.4,0.817]
[1767798518006,12.61750044,3170.2,3167.4,0.817]
[1767798518007,2.8054517,3169.9,3167.4,0.817]
[1767798518255,2.8054517,3169.5,3167.4,0.817]
[1767798518389,2.8054517,3169.3,3167.4,0.817]
[1767798518585,0.822,3169.2,3167.4,0.817]
[1767798518785,3.6274517,3169.2,3167.1,2.85642951]
[1767798519092,2.8054517,3169.0,3167.0,0.002]
[1767798519290,6.3113383,3168.9,3167.0,0.002]
[1767798519490,7.1333383,3168.9,3167.1,2.85642951]
[1767798519728,7.1333383,3168.9,3167.2,0.28584295]
[1767798519930,7.1333383,3168.9,3167.0,0.002]
[1767798520392,6.3113383,3168.9,3167.0,0.002]
[1767798520705,3.97766915,3168.9,3167.0,2.85842951]
[1767798520894,0.28054517,3169.4,3167.1,2.85642951]
[1767798521101,3.97727088,3169.3,3167.1,2.85642951]
[1767798521405,3.1548727,3169.7,3167.4,2.85642951]
[1767798521608,6.3097454,3169.7,3167.5,0.818]
[1767798521793,0.822,3169.6,3167.5,0.818]
[1767798522299,0.823,3169.5,3167.5,0.818]
[1767798522496,0.823,3169.5,3167.6,0.36744295]
[1767798522896,2.8054517,3169.4,3167.6,0.36744295]
[1767798523096,0.823,3169.4,3167.5,0.818]
[1767798523503,12.27126434,3169.3,3167.5,0.818]
[1767798524118,9.11599346,3169.3,3167.5,0.818]
[1767798524432,0.823,3169.2,3167.5,0.818]
[1767798524793,2.8054517,3169.2,3167.5,0.818]
[1767798525019,0.823,3169.1,3167.5,0.818]
[1767798525330,2.8054517,3169.2,3167.5,0.818]
[1767798525533,3.15547,3169.1,3167.5,3.67442951]
[1767798525765,6.31094,3169.1,3167.6,0.36744295]
[1767798526205,0.16456818,3169.0,3167.6,0.36744295]
[1767798527201,0.16456818,3169.0,3167.6,3.22387246]
[1767798527403,3.15566915,3168.9,3167.6,3.22387246]
[1767798527926,6.3113383,3168.9,3167.9,0.002]
[1767798528232,3.15566915,3168.9,3167.9,0.002]
[1767798528439,0.16456818,3169.0,3167.9,2.85842951]
[1767798528597,7.13155124,3170.3,3168.1,2.85642951]
[1767798528796,6.30855124,3170.3,3168.3,2.85642951]
[1767798529000,3.15427562,3170.3,3168.3,2.85642951]
[1767798529437,2.8054517,3170.9,3168.5,9.16856457]
[1767798529661,1.37710213,3167.9,3167.5,0.002]
[1767798529953,2.8054517,3169.2,3167.5,0.002]
[1767798530119,3.6284517,3169.1,3167.5,0.002]
[1767798530452,2.8054517,3169.9,3167.5,0.002]
[1767798530645,4.65462381,3169.8,3167.6,0.818]
[1767798530829,3.6284517,3169.7,3167.6,0.818]
[1767798531032,2.8054517,3169.6,3167.6,0.818]
[1767798531247,2.8054517,3169.6,3167.5,0.002]
[1767798531442,2.8054517,3169.2,3167.5,0.002]
[1767798532448,0.823,3169.1,3167.5,0.002]
[1767798532649,2.13242643,3169.1,3167.5,0.002]
[1767798533051,1.30942643,3169.1,3167.5,0.002]
[1767798533279,0.823,3169.0,3167.1,2.85642951]
[1767798533437,0.823,3169.1,3167.1,2.85642951]
[1767798533758,7.13413916,3169.0,3167.1,2.85642951]
[1767798534051,2.8054517,3169.8,3167.2,2.85642951]
[1767798534252,6.3097454,3169.7,3167.4,2.85642951]
[1767798534423,3.15427562,3170.3,3167.8,2.85642951]
[1767798534626,3.15427562,3170.3,3167.3,1.45167109]
[1767798534627,7.13155124,3170.3,3168.0,2.85642951]
[1767798535651,10.28582686,3170.3,3168.1,0.819]
[1767798536022,10.28582686,3170.3,3168.1,3.97541926]
[1767798536225,11.59495472,3170.3,3168.2,0.99883702]
[1767798536529,14.40040642,3170.3,3168.2,0.99883702]
[1767798536750,13.57740642,3170.3,3168.1,0.819]
[1767798537064,0.823,3170.2,3168.1,6.83188186]
[1767798537456,0.823,3170.2,3168.1,6.83188324]
[1767798537656,6.30894924,3170.1,3168.1,6.83188324]
[1767798537846,6.30894924,3170.1,3168.1,3.67542951]
[1767798538051,6.30894924,3170.1,3168.2,0.68319612]
[1767798538764,7.13194924,3170.1,3168.2,0.68319612]
[1767798539577,4.11457956,3170.3,3168.2,0.68319612]
[1767798539578,3.97739883,3170.2,3168.2,3.53962563]
[1767798539766,3.15439883,3170.2,3168.3,9.16896303]
[1767798539963,6.30879766,3170.2,3168.4,0.98521592]
[1767798540161,9.46319649,3170.2,3168.4,0.98521592]
[1767798540363,2.8054517,3170.1,3168.2,9.85235658]
[1767798540567,3.15431869,3170.3,3168.3,2.85642951]
[1767798540828,6.30863738,3170.3,3168.3,2.85642951]
[1767798540946,0.001,3169.9,3168.3,2.85642951]
[1767798541366,0.001,3169.9,3168.5,2.60523603]
[1767798541544,0.001,3169.9,3168.6,2.89171189]
[1767798541757,0.001,3169.9,3168.8,2.67790526]
[1767798541959,0.001,3169.9,3169.0,2.67790526]
[1767798542848,3.15338042,3171.2,3169.2,2.67790526]
[1767798543371,3.1527839,3171.8,3169.4,2.67790526]
[1767798543561,1.413444,3171.7,3169.6,2.67790526]
[1767798543763,6.30596544,3171.6,3169.6,5.83282438]
[1767798543962,3.74334924,3171.7,3169.7,2.67790526]
[1767798544139,0.590444,3171.7,3169.7,2.67790526]
[1767798544341,2.75165606,3172.7,3170.3,2.67790526]
[1767798544571,2.75165606,3172.7,3170.5,2.67790526]
[1767798545091,2.75165606,3172.7,3170.4,0.819]
[1767798545695,2.75165606,3172.3,3169.5,0.26779053]
[1767798545883,2.75165606,3172.1,3169.5,0.26779053]
[1767798546461,2.75165606,3171.9,3169.5,0.26779053]
[1767798546667,2.75165606,3171.9,3169.5,2.94569579]
[1767798546973,0.823,3171.8,3169.5,2.94569579]
[1767798547191,3.10912167,3171.7,3169.6,0.37636958]
[1767798547502,3.57465606,3171.6,3169.6,0.37636958]
[1767798547887,6.30616426,3171.5,3169.6,0.37636958]
[1767798548473,9.45924639,3171.5,3169.6,0.37636958]
[1767798548702,2.75165606,3171.4,3169.6,0.37636958]
[1767798548910,3.8979895,3171.3,3169.4,0.818]
[1767798549213,0.823,3171.4,3169.6,5.83285608]
[1767798549369,0.823,3171.4,3169.6,5.83284355]
[1767798549575,0.823,3171.4,3169.6,2.67790526]
[1767798549897,0.823,3171.5,3169.6,2.67790526]
[1767798550495,2.75165606,3171.4,3169.4,0.818]
[1767798550702,0.35746561,3171.3,3169.4,0.818]
[1767798551200,3.10912167,3171.3,3169.4,0.818]
[1767798551508,0.16,3171.2,3169.0,0.818]
[1767798551678,2.75165606,3170.9,3168.1,3.15639013]
[1767798551871,0.16,3171.2,3168.6,0.818]
[1767798551872,2.75165606,3170.7,3168.6,0.818]
[1767798552067,2.75165606,3170.5,3168.6,0.818]
[1767798552718,0.823,3170.4,3168.6,0.818]
[1767798553008,2.75165606,3170.3,3166.6,0.002]
[1767798553192,2.75165606,3170.3,3168.9,0.002]
[1767798553393,2.75165606,3170.3,3168.0,2.67790526]
[1767798553583,1.61897689,3170.6,3168.0,2.67790526]
[1767798553584,2.75165606,3170.1,3168.1,0.34959053]
[1767798554095,2.75165606,3169.9,3168.5,0.002]
[1767798555102,6.30914826,3170.0,3168.5,0.002]
[1767798555274,0.823,3169.9,3168.5,0.002]
[1767798555688,3.57465606,3169.9,3168.5,0.002]
[1767798555896,0.59953382,3169.8,3168.5,0.002]
[1767798556176,3.15429247,3170.3,3168.5,2.67990526]
[1767798556376,6.30858494,3170.3,3168.5,2.67990526]
[1767798556576,3.15420079,3170.4,3168.5,2.67990526]
[1767798557413,6.30840158,3170.4,3168.5,2.67990526]
[1767798557574,9.46260237,3170.4,3168.6,0.26799053]
[1767798557775,6.30840158,3170.4,3168.7,0.818]
[1767798558376,5.90569807,3170.6,3168.7,3.97385878]
[1767798558577,3.15404201,3170.6,3168.8,2.67790526]
[1767798558795,6.30808402,3170.6,3168.8,2.67790526]
[1767798558998,6.30808402,3170.6,3168.7,7.12972711]
[1767798558999,2.75165606,3170.5,3168.9,0.98076324]
[1767798559276,2.75165606,3170.5,3168.7,0.818]
[1767798560115,6.30835224,3170.4,3168.7,3.97382597]
[1767798560318,0.823,3170.3,3168.7,0.818]
[1767798560670,6.30835224,3170.4,3168.7,0.818]
[1767798560906,7.13135224,3170.4,3168.7,3.49590526]
[1767798561084,2.75165606,3170.3,3168.8,0.66518331]
[1767798561280,2.75165606,3170.3,3168.7,0.818]
[1767798561802,2.75165606,3170.3,3168.5,0.002]
[1767798562101,2.75165606,3170.1,3168.5,0.002]
[1767798562476,2.75165606,3169.9,3168.5,0.002]
[1767798562779,2.75165606,3169.7,3168.5,0.002]
[1767798563005,3.10912167,3169.6,3168.5,0.002]
[1767798564096,0.823,3169.5,3168.5,0.002]
[1767798564503,9.0619987,3169.4,3168.5,0.002]
[1767798564708,2.75165606,3169.3,3168.0,0.818]
[1767798564907,0.823,3169.2,3168.0,0.818]
[1767798565098,1.81149987,3169.2,3168.0,0.818]
[1767798565413,1.81149987,3169.2,3167.5,3.15701083]
[1767798565600,0.823,3169.2,3167.4,3.97613583]
[1767798565813,2.75165606,3169.3,3167.5,3.15704579]
[1767798565996,2.75165606,3169.3,3168.8,0.002]
[1767798566187,6.31034264,3169.4,3167.6,2.67790526]
[1767798566378,6.31034264,3169.4,3167.4,0.819]
[1767798566379,6.31034264,3169.4,3167.7,2.67790526]
[1767798566580,6.3097454,3169.7,3168.5,0.002]
[1767798566781,0.823,3169.6,3168.5,0.002]
[1767798566977,2.75165606,3169.5,3168.5,0.002]
[1767798567301,2.75165606,3169.5,3167.4,3.49690526]
[1767798567621,0.823,3169.6,3166.3,0.002]
[1767798567622,2.75165606,3168.6,3166.3,0.002]
[1767798567803,0.16,3168.1,3166.3,0.002]
[1767798568004,2.75165606,3167.9,3166.3,0.002]
[1767798568204,2.75165606,3167.9,3165.0,2.67790526]
[1767798568508,6.3137292,3167.7,3165.5,2.67790526]
[1767798568707,3.9798646,3167.7,3165.7,2.67790526]
[1767798569089,7.1367292,3167.7,3165.7,2.67790526]
[1767798569284,3.1568646,3167.7,3165.7,2.67790526]
[1767798569597,7.1367292,3167.7,3165.7,2.67790526]
[1767798569808,0.823,3167.6,3165.7,2.67790526]
[1767798570118,3.15631562,3168.3,3165.6,1.08599053]
[1767798570119,5.90717565,3169.1,3166.2,2.67790526]
[1767798570323,2.75165606,3168.9,3166.2,2.67790526]
[1767798570635,2.75165606,3168.7,3166.3,7.13552086]
[1767798570884,2.75165606,3168.7,3166.3,3.97726043]
[1767798571015,2.75165606,3168.7,3166.3,0.819]
[1767798571199,4.3913833,3168.6,3166.4,0.66552454]
[1767798571533,3.5683833,3168.6,3166.4,0.66552454]
[1767798572026,0.823,3168.5,3166.4,0.66552454]
[1767798572395,0.823,3168.4,3166.4,0.66552454]
[1767798572595,6.31253352,3168.3,3166.4,3.82364867]
[1767798572791,7.02608687,3168.3,3166.5,0.46426487]
[1767798572993,3.15626676,3168.3,3166.5,0.46426487]
[1767798573200,0.824,3168.2,3166.5,0.46426487]
[1767798573424,6.31253352,3168.3,3166.5,0.46426487]
[1767798573600,3.98026676,3168.3,3166.5,0.46426487]
[1767798573797,3.15626676,3168.3,3166.5,2.91013455]
[1767798574004,3.5683833,3168.6,3166.7,2.44586968]
[1767798574005,3.15606753,3168.5,3166.7,2.44586968]
[1767798574193,6.31213506,3168.5,3166.7,2.44586968]
[1767798574394,8.81609724,3168.5,3166.6,0.98919439]
[1767798574619,2.50396218,3168.2,3166.5,0.46426487]
[1767798574825,0.824,3168.2,3166.5,5.60391956]
[1767798575126,3.15578594,3168.8,3166.6,2.44586968]
[1767798575654,0.824,3169.1,3166.8,2.44586968]
[1767798575864,2.50396218,3169.1,3166.8,2.44586968]
[1767798576158,2.50396218,3169.1,3167.0,2.44586968]
[1767798576356,2.50396218,3169.1,3167.1,0.819]
[1767798576555,10.29011132,3169.2,3167.1,0.819]
[1767798576556,2.50396218,3168.9,3167.1,0.819]
[1767798577246,2.50396218,3168.9,3166.7,0.819]
[1767798577446,2.50396218,3168.7,3166.7,0.819]
[1767798577646,2.50396218,3168.5,3166.7,0.819]
[1767798578389,0.824,3168.4,3166.7,0.819]
[1767798578531,6.31253352,3168.3,3166.8,0.002]
[1767798578727,2.50396218,3168.2,3166.5,0.002]
[1767798579068,5.83096218,3167.7,3165.4,0.821]
[1767798579263,2.50396218,3167.5,3165.4,3.98015099]
[1767798579427,2.50396218,3167.5,3165.4,0.821]
[1767798579837,3.32796218,3167.5,3165.7,3.15885307]
[1767798580044,3.32796218,3167.5,3165.5,5.60492577]
[1767798580239,3.6607584,3167.5,3165.6,0.64259258]
[1767798580452,2.50396218,3168.1,3166.1,2.44586968]
[1767798580650,6.3131313,3168.0,3166.2,0.819]
[1767798581066,7.1371313,3168.0,3166.2,3.97735913]
[1767798581457,3.15656565,3168.0,3166.3,2.44586968]
[1767798581652,3.15616906,3168.4,3166.3,2.44586968]
[1767798581852,2.50396218,3168.7,3166.5,2.44586968]
[1767798582053,9.46611132,3169.2,3166.7,2.44586968]
[1767798582256,0.824,3169.1,3166.7,2.44586968]
[1767798582445,3.32796218,3169.1,3166.7,2.44586968]
[1767798582769,2.50396218,3168.9,3166.7,2.44586968]
[1767798582979,2.50396218,3168.7,3166.7,2.44586968]
[1767798583176,0.824,3168.6,3166.7,2.44586968]
[1767798583471,3.32796218,3168.6,3166.4,3.15814187]
[1767798583633,3.32796218,3168.6,3166.2,1.07852256]
[1767798583634,2.50396218,3168.5,3166.6,3.15790373]
[1767798583839,2.50396218,3168.5,3166.3,3.15823527]
[1767798584038,2.8367584,3168.5,3166.6,3.15795152]
[1767798584458,2.8367584,3168.5,3166.4,3.11413243]
[1767798584673,1.19706709,3168.8,3166.7,2.44586968]
[1767798584972,3.97956958,3169.0,3166.9,2.44586968]
[1767798585143,3.15556958,3169.0,3166.9,2.44586968]
[1767798585973,6.31115893,3169.0,3167.0,8.7609944]
[1767798586352,7.13515893,3169.0,3167.0,8.7609944]
[1767798586549,6.31115893,3169.0,3167.1,0.87609944]
[1767798586781,5.65888898,3169.7,3167.2,2.44586968]
[1767798586948,3.327,3170.1,3167.6,2.44586968]
[1767798586949,6.30894924,3170.1,3167.6,2.44586968]
[1767798587147,0.63099492,3170.0,3167.8,2.44586968]
[1767798587950,0.001,3170.2,3168.2,2.44586968]
[1767798588141,0.001,3170.2,3168.4,2.44586968]
[1767798589856,0.001,3170.2,3168.5,0.25952256]
[1767798590073,0.001,3170.2,3168.7,0.25952256]
[1767798590246,3.15264266,3172.0,3168.7,0.25952256]
[1767798590247,11.96141937,3172.1,3169.5,2.44586968]
[1767798590445,2.81922645,3171.9,3169.6,0.819]
[1767798591447,0.001,3169.9,3168.9,2.44586968]
[1767798591763,2.50396218,3171.3,3169.0,3.26486968]
[1767798592181,6.30676084,3171.2,3169.2,2.44586968]
[1767798592355,6.30676084,3171.2,3169.3,3.00600365]
[1767798592356,3.15338042,3171.2,3169.3,3.00600365]
[1767798593479,6.30676084,3171.2,3169.3,3.00600365]
[1767798593982,3.15338042,3171.2,3169.3,3.00600365]
[1767798594586,7.12906321,3171.6,3169.4,7.12934264]
[1767798594753,2.50396218,3171.5,3169.5,0.819]
[1767798594954,3.46726472,3171.4,3169.6,1.21641713]
[1767798595176,3.46726472,3171.4,3169.6,0.819]
[1767798595560,0.96330254,3171.4,3169.6,3.26486968]
[1767798596585,0.96330254,3171.4,3169.7,3.1548727]
[1767798596872,3.15298272,3171.6,3169.7,3.1548727]
[1767798597074,6.3059924,3171.6,3169.7,3.1548727]
[1767798597276,2.50396218,3171.5,3169.8,0.818]
[1767798599183,6.30636312,3171.4,3169.8,0.818]
[1767798600075,3.97618156,3171.4,3169.8,3.97274618]
[1767798600389,0.96332396,3171.3,3169.9,0.39727462]
[1767798600922,2.40823105,3172.5,3170.0,2.4127363]
[1767798601097,2.40823105,3172.5,3170.6,2.4127363]
[1767798601384,0.823,3172.9,3170.8,2.4127363]
[1767798601559,2.40823105,3173.0,3170.8,2.4127363]
[1767798601765,3.23123105,3173.0,3170.8,2.4127363]
[1767798601964,2.40823105,3173.0,3170.8,2.4127363]
[1767798602583,2.40823105,3173.0,3171.0,2.51828567]
[1767798602756,2.40823105,3173.0,3171.1,0.25182857]
[1767798602959,2.40823105,3173.0,3171.2,0.818]
[1767798603263,16.70478373,3173.5,3171.2,0.818]
[1767798603264,3.15120147,3173.4,3171.3,2.51828567]
[1767798603464,2.43952126,3173.5,3171.3,2.51828567]
[1767798603981,3.15146022,3173.2,3171.3,2.51828567]
[1767798604177,5.59114893,3174.0,3171.3,2.51828567]
[1767798604489,3.15069787,3173.9,3171.7,2.51828567]
[1767798604692,0.55912191,3173.8,3171.9,2.51828567]
[1767798604899,2.99864317,3173.8,3171.9,2.51828567]
[1767798605197,6.30179286,3173.7,3171.9,2.51828567]
[1767798605493,2.43952126,3173.6,3172.0,0.818]
[1767798606267,2.43952126,3173.6,3172.1,0.818]
[1767798606481,0.87413141,3173.5,3172.1,0.818]
[1767798607198,8.74190986,3173.4,3171.5,0.25952256]
[1767798607394,8.74190986,3173.4,3171.6,0.818]
[1767798607565,8.74190986,3173.4,3171.7,0.818]
[1767798607890,2.43952126,3173.3,3171.7,0.818]
[1767798608063,3.31371225,3173.2,3171.7,0.818]
[1767798609195,2.43952126,3173.0,3170.7,3.15385736]
[1767798609394,6.30298446,3173.1,3171.3,2.51828567]
[1767798609559,2.43952126,3173.0,3171.4,0.818]
[1767798609765,2.43952126,3172.8,3171.4,0.818]
[1767798610396,3.15149223,3173.1,3171.5,2.51828567]
[1767798610585,2.43952126,3173.0,3171.4,0.818]
[1767798610765,2.43952126,3173.0,3171.4,3.97110985]
[1767798610965,2.43952126,3173.0,3171.4,0.818]
[1767798611165,6.30358042,3172.8,3171.5,0.39712739]
[1767798611383,6.30358042,3172.8,3171.4,0.818]
[1767798611597,2.43952126,3172.7,3171.4,0.818]
[1767798611798,2.43952126,3172.7,3170.5,2.51828567]
[1767798611964,2.43952126,3172.7,3170.6,0.818]
[1767798612381,3.327,3172.6,3170.6,0.818]
[1767798612574,2.43952126,3172.4,3170.6,0.818]
[1767798613186,6.3047727,3172.2,3170.6,0.818]
[1767798613589,3.15220401,3172.4,3170.7,2.51828567]
[1767798613779,3.15206108,3172.6,3170.7,2.51828567]
[1767798614115,2.43952126,3172.5,3170.8,0.818]
[1767798614315,3.62909171,3172.4,3170.9,0.33362857]
[1767798614701,2.43952126,3172.3,3170.9,0.33362857]
[1767798614885,2.43952126,3172.3,3170.7,0.818]
[1767798615415,11.89668031,3172.2,3170.7,0.818]
[1767798615777,2.43952126,3172.1,3170.7,0.818]
[1767798616205,2.43952126,3172.1,3169.7,2.51828567]
[1767798616405,2.43952126,3172.1,3170.9,0.002]
[1767798616605,2.43952126,3171.9,3170.9,0.002]
[1767798616808,2.43952126,3171.7,3169.8,0.818]
[1767798617013,2.43952126,3171.7,3170.5,0.002]
[1767798617216,8.7454867,3171.6,3170.5,0.002]
[1767798617814,2.43952126,3171.5,3169.8,0.818]
[1767798618006,2.43952126,3171.4,3169.8,0.818]
[1767798619287,8.74608322,3171.3,3169.8,0.818]
[1767798620113,6.3064511,3171.4,3169.9,2.51828567]
[1767798620287,3.15322555,3171.4,3169.9,2.51828567]
[1767798620489,3.97588774,3171.7,3169.9,2.51828567]
[1767798620684,3.15288774,3171.7,3169.9,2.51828567]
[1767798621013,6.30577548,3171.7,3169.9,2.51828567]
[1767798621312,6.30577548,3171.7,3170.0,0.64910392]
[1767798621313,7.26260515,3171.7,3170.0,0.64910392]
[1767798621809,9.70212641,3171.7,3170.0,0.64910392]
[1767798622014,9.70212641,3171.7,3170.0,3.80366912]
[1767798622226,9.70212641,3171.7,3170.0,0.64910392]
[1767798622607,2.43952126,3171.6,3170.0,0.64910392]
[1767798622804,2.43952126,3171.6,3169.8,0.818]
[1767798623314,2.43952126,3171.4,3169.8,0.818]
[1767798623521,2.43952126,3171.3,3169.8,0.818]
[1767798625421,2.43952126,3171.1,3169.5,0.818]
[1767798625622,2.43952126,3170.9,3169.5,0.818]
[1767798626298,2.43952126,3170.9,3169.3,0.002]
[1767798626888,2.43952126,3170.7,3169.3,0.002]
[1767798627513,6.30795432,3170.6,3169.3,0.002]
[1767798628725,6.30795432,3170.6,3169.6,0.002]
[1767798628906,6.73780962,3170.6,3169.6,0.002]
[1767798629743,1.10799135,3171.0,3169.6,0.002]
[1767798630030,3.15367876,3170.9,3169.6,0.002]
[1767798630202,3.15460357,3171.0,3169.6,2.52028567]
[1767798630403,0.001,3171.0,3169.6,2.52028567]
[1767798631791,0.001,3171.0,3169.8,2.316834]
[1767798631990,0.001,3171.0,3170.0,2.316834]
[1767798632225,0.001,3171.0,3170.1,2.6303174]
[1767798632833,0.001,3171.0,3170.1,0.3134834]
[1767798633129,0.001,3171.0,3169.9,0.818]
[1767798634204,2.35415317,3171.0,3169.6,0.002]
[1767798634401,2.35315317,3170.8,3169.6,0.002]
[1767798634599,2.35315317,3170.8,3169.3,0.82]
[1767798634600,2.35315317,3170.8,3169.3,0.002]
[1767798634819,2.35315317,3170.8,3168.7,0.002]
[1767798635020,2.35315317,3170.6,3168.7,0.002]
[1767798635423,2.35315317,3170.6,3168.0,0.002]
[1767798635424,2.35315317,3170.3,3168.0,0.002]
[1767798635734,2.35315317,3170.1,3168.0,0.002]
[1767798635897,2.35315317,3169.9,3168.0,0.002]
[1767798636426,2.35315317,3169.7,3168.0,0.002]
[1767798636633,2.35315317,3169.5,3168.0,0.002]
[1767798637516,3.17615317,3169.4,3168.0,0.002]
[1767798637717,2.35315317,3169.9,3168.0,0.002]
[1767798637928,11.81777127,3169.7,3168.0,0.002]
[1767798638100,2.35315317,3169.6,3168.0,0.002]
[1767798638299,1.18177713,3169.5,3168.0,0.002]
[1767798638528,3.5349303,3169.5,3168.0,0.002]
[1767798639313,0.823,3169.4,3168.0,0.002]
[1767798639842,3.1548727,3169.7,3168.0,2.318834]
[1767798640004,3.15417612,3170.4,3168.2,2.316834]
[1767798640208,3.15417612,3170.4,3168.4,2.316834]
[1767798640421,0.823,3170.3,3168.4,2.316834]
[1767798640619,0.823,3170.3,3168.6,2.316834]
[1767798640971,2.35415317,3171.0,3168.8,2.316834]
[1767798641105,0.001,3170.5,3168.8,2.316834]
[1767798641434,0.001,3170.5,3169.2,2.316834]
[1767798641633,0.001,3170.5,3169.4,2.316834]
[1767798641838,0.001,3170.5,3169.5,0.3134834]
[1767798642335,0.001,3170.5,3169.5,3.46853898]
[1767798642531,0.001,3170.5,3169.5,0.3134834]
[1767798642832,0.001,3170.5,3169.5,3.46854315]
[1767798643635,0.001,3170.5,3169.5,5.78537715]
[1767798643847,0.001,3170.5,3169.6,0.57853772]
[1767798644149,0.001,3170.5,3169.5,5.78537261]
[1767798644298,0.001,3170.5,3169.5,3.46853861]
[1767798644504,0.001,3170.5,3169.5,5.78537261]
[1767798644816,0.001,3170.5,3169.6,2.316834]
[1767798645409,6.47458425,3173.1,3169.5,0.3134834]
[1767798645410,2.35315317,3172.3,3169.8,2.316834]
[1767798645727,2.35315317,3172.3,3169.5,6.62358281]
[1767798645728,2.35315317,3172.1,3169.9,0.2316834]
[1767798645927,2.35315317,3171.9,3169.5,0.3134834]
[1767798646133,2.35315317,3171.9,3169.5,3.46853042]
[1767798646325,2.35315317,3171.9,3169.5,0.3134834]
[1767798647116,2.35315317,3171.9,3169.5,3.46855366]
[1767798647311,2.35315317,3171.7,3169.5,0.3134834]
[1767798647545,0.16,3171.8,3169.3,0.818]
[1767798647546,2.35315317,3171.5,3169.3,0.818]
[1767798648047,2.35315317,3171.3,3169.3,0.818]
[1767798648761,0.25131532,3171.6,3169.6,2.316834]
[1767798649046,2.35315317,3171.8,3169.3,10.28374812]
[1767798649047,6.3047727,3172.2,3170.0,2.316834]
[1767798649215,0.86579259,3172.1,3170.2,2.316834]
[1767798649617,2.35315317,3172.8,3170.6,2.316834]
[1767798649825,3.15188955,3172.7,3170.9,2.316834]
[1767798650130,5.50498231,3172.8,3171.2,3.15338042]
[1767798650326,3.97482914,3172.8,3171.2,3.15338042]
[1767798650526,3.15139291,3173.2,3171.3,2.316834]
[1767798650725,3.15139291,3173.2,3171.5,2.316834]
[1767798650934,3.15121371,3173.4,3171.5,2.316834]
[1767798650935,7.1253886,3173.4,3171.5,2.316834]
[1767798651142,6.3023886,3173.4,3171.5,2.316834]
[1767798651347,7.1253886,3173.4,3171.5,2.316834]
[1767798651659,6.3023886,3173.4,3171.5,2.316834]
[1767798651854,1.76845282,3173.3,3171.6,0.31791935]
[1767798652353,3.15139291,3173.2,3171.7,0.818]
[1767798652552,3.9743235,3173.3,3171.8,2.316834]
[1767798652759,7.125647,3173.3,3171.8,2.316834]
[1767798653338,7.125647,3173.3,3171.7,0.818]
[1767798653554,0.001,3172.4,3171.7,0.818]
[1767798657767,0.001,3172.4,3170.8,2.316834]
[1767798657974,0.001,3172.4,3170.9,1.0496834]
[1767798658282,3.17715317,3172.4,3170.9,1.0496834]
[1767798658452,2.35315317,3172.3,3170.9,0.818]
[1767798658654,2.35315317,3172.3,3170.1,0.25763566]
[1767798658854,2.35315317,3172.1,3169.8,2.316834]
[1767798659283,2.35315317,3171.9,3169.8,2.316834]
[1767798659591,0.823,3171.8,3169.8,2.316834]
[1767798659776,2.35315317,3171.7,3169.8,2.316834]
[1767798660081,2.35315317,3171.7,3169.8,5.47159507]
[1767798660284,2.67076849,3171.6,3169.9,0.94444573]
[1767798660488,2.67076849,3171.6,3169.7,3.97281131]
[1767798660682,2.67076849,3171.6,3169.8,3.15474663]
[1767798660851,3.15318156,3171.4,3169.7,3.134834]
[1767798661060,9.45954468,3171.4,3169.7,0.818]
[1767798661403,2.35315317,3171.3,3169.7,0.818]
[1767798662482,2.33296418,3171.2,3169.7,0.818]
[1767798662798,2.33296418,3171.2,3169.1,0.818]
[1767798662993,2.33296418,3171.0,3169.2,0.39735412]
[1767798663296,2.33296418,3170.8,3168.2,2.38576962]
[1767798663496,2.33296418,3170.8,3167.5,2.38576962]
[1767798663664,2.33296418,3170.8,3168.1,3.15644286]
[1767798663861,2.33296418,3170.8,3167.9,0.818]
[1767798664294,2.33296418,3170.8,3167.9,6.3604097]
[1767798664460,2.33296418,3170.6,3167.9,6.3604097]
[1767798664792,2.33296418,3170.6,3168.0,3.15853947]
[1767798664980,2.33296418,3170.4,3168.0,0.002]
[1767798665162,2.33296418,3170.4,3170.0,0.002]
[1767798665363,2.33296418,3170.2,3168.0,0.002]
[1767798665564,2.33296418,3170.2,3169.6,0.002]
[1767798665800,2.33296418,3170.2,3168.0,0.002]
[1767798665967,2.33296418,3170.2,3168.4,0.002]
[1767798666169,2.33296418,3170.1,3168.4,0.002]
[1767798666382,3.21526332,3170.0,3168.4,0.002]
[1767798666873,2.1589669,3169.9,3168.4,0.002]
[1767798667384,2.1589669,3169.7,3168.4,0.002]
[1767798667696,0.823,3169.6,3168.4,0.002]
[1767798667870,2.1589669,3169.5,3168.4,0.002]
[1767798668191,2.1589669,3169.3,3168.0,0.002]
[1767798668394,2.1589669,3169.1,3166.6,0.818]
[1767798668602,2.1589669,3168.9,3166.6,0.818]
[1767798669010,0.823,3168.8,3166.8,2.21722085]
[1767798669197,9.46760499,3168.7,3166.8,2.21722085]
[1767798669573,6.31173666,3168.7,3167.1,2.21922085]
[1767798669774,3.15586833,3168.7,3167.2,0.22192209]
[1767798670008,2.1589669,3168.6,3167.1,0.002]
[1767798670477,0.823,3168.5,3167.1,0.002]
[1767798670677,2.1589669,3168.6,3167.1,0.002]
[1767798670908,0.823,3168.5,3167.1,0.002]
[1767798671293,3.15616715,3168.4,3167.1,0.002]
[1767798671474,0.823,3168.3,3167.1,0.002]
[1767798671679,3.15583821,3168.8,3167.1,2.21922085]
[1767798671911,6.31166685,3168.8,3167.3,2.21722085]
[1767798673006,6.31166685,3168.8,3167.2,0.22192209]
[1767798673209,2.1589669,3168.7,3167.1,0.002]
[1767798673424,3.15576874,3168.8,3167.1,2.21922085]
[1767798673715,3.15539234,3169.2,3167.5,2.21722085]
[1767798673878,3.15539234,3169.2,3167.6,2.46489519]
[1767798674075,3.97830906,3169.3,3167.6,2.46489519]
[1767798674280,3.15530906,3169.3,3167.6,2.46489519]
[1767798674596,7.13361812,3169.3,3167.6,2.46489519]
[1767798674818,6.31061812,3169.3,3167.6,2.46489519]
[1767798675095,6.30998916,3169.6,3167.8,2.21722085]
[1767798675430,7.4723827,3171.1,3167.7,0.70928952]
[1767798675431,2.1589669,3169.3,3167.7,0.70928952]